Cogmind - Beta 15 @@@ ROGUE MODE // 2025.07.30 @ 19:07:41 Player: satan5 Result: Self-destructed Performance ------------- Evolutions (2) 1000 Regions Visited (3) 600 Robots Destroyed (81) 405 Value Destroyed (2361) 2361 Prototype IDs (23) 460 Alien Tech Used (0) 0 Bonus (-65) -65 TOTAL SCORE: 4761 Bonus ------- Friendly Fire -65 Cogmind --------- Core Integrity 417/550 Matter 290/300 Energy 150/150 System Corruption 0% Temperature Cool (0) Movement Treading (160) Location -8/Materials Parts ------- > --- POWER (1) -------- Micro Nuclear Core > --- PROPULSION (4) --- Light Treads Light Treads Light Treads Spiked Treads > --- UTILITY (4) ------ Improved Heat Sink High-capacity Storage Unit Core Analyzer System Shield > --- WEAPON (2) ------- Advanced Beam Cannon Advanced Beam Cannon > --- INVENTORY (20) --- Light Angular Momentum Engine Light Angular Momentum Engine Light Treads Armored Treads Improved Sensor Array Improved Signal Interpreter Core Analyzer Improved Medium Armor Plating Improved Medium Armor Plating Power Bank Riot Gun Riot Gun Heavy Particle Gun Beamcaster Advanced Beam Cannon Minigun Heavy Battle Rifle Advanced EMP Blaster Subdweller Shrapnel Launcher Makeshift Hammer Peak State ------------ > --- POWER ------------ Micro Nuclear Core > --- PROPULSION ------- Light Treads Light Treads Light Treads Spiked Treads > --- UTILITY ---------- Improved Heat Sink High-capacity Storage Unit System Shield System Shield > --- WEAPON ----------- Heavy Particle Gun Advanced Beam Cannon > --- INVENTORY -------- Light Angular Momentum Engine Light Angular Momentum Engine Light Treads Improved Sensor Array Improved Signal Interpreter Particle Charger Improved Medium Armor Plating Improved Medium Armor Plating Power Bank Riot Gun Riot Gun Beamcaster Advanced Beam Cannon Advanced Beam Cannon Minigun Heavy Battle Rifle Advanced EMP Blaster Subdweller Shrapnel Launcher Makeshift Hammer [Rating: 33] Favorites ----------- Power Ion Engine Engine Ion Engine Power Core Micro Nuclear Core Propulsion Improved Treads Treads Improved Treads Utility Medium Armor Plating Device Improved Heat Sink Storage High-capacity Storage Unit Processor Core Analyzer Hackware System Shield Protection Medium Armor Plating Weapon Subdweller Beam Cannon Energy Gun Subdweller Laser Energy Cannon Subdweller Beam Cannon Ballistic Gun Heavy Assault Rifle Launcher Grenade Launcher Build | -11 -10 -10 -8 ------- Run | Yrd Mat Sub Mat Slots Evolved 4 | . . . 4 Power . | . . . . Propulsion 2 | . . . 2 Utility 2 | . . . 2 Weapon . | . . . . Parts Attached 49 | 7 9 11 22 Power 3 | 1 1 . 1 Engine 2 | 1 1 . . Core 1 | . . . 1 Reactor . | . . . . Propulsion 14 | 2 2 2 8 Treads 14 | 2 2 2 8 Leg . | . . . . Wheel . | . . . . Hover . | . . . . Flight . | . . . . Utility 12 | 2 2 2 6 Device 2 | 1 . . 1 Storage 3 | 1 1 1 . Processor 1 | . . . 1 Hackware 2 | . . . 2 Protection 4 | . 1 1 2 Artifact . | . . . . Weapon 20 | 2 4 7 7 Energy Gun 6 | 2 . 2 2 Energy Cannon 5 | . . 2 3 Ballistic Gun 6 | . 4 2 . Ballistic Cannon . | . . . . Launcher 3 | . . 1 2 Special Weapon . | . . . . Impact Weapon . | . . . . Slashing Weapon . | . . . . Piercing Weapon . | . . . . Special Melee Weapon . | . . . . Unidentified Prototypes 4 | . . . 4 Parts Lost 9 | . 2 2 5 Power 1 | . 1 . . Propulsion 5 | . . 1 4 Utility 3 | . 1 1 1 Weapon . | . . . . Highest Loss Streak 2 | . 2 1 2 To Critical Strikes 1 | . . 1 . Average Backups 15 | 1 7 16 18 Power . | . . . 1 Propulsion 3 | . 2 4 2 Utility 1 | . 1 1 3 Weapon 9 | . 3 11 11 Tool/Special . | . . . . Unused Backups 37 | . 4 7 26 Power 2 | . . . 2 Propulsion 3 | . 2 . 1 Utility 9 | . . . 9 Weapon 23 | . 2 7 14 Tool/Special . | . . . . Average Slot Usage (%) 99 | . 99 99 96 Engine 12 | . 14 14 5 Treads 29 | . 27 28 35 Device 2 | . 2 . 8 Storage 12 | . 14 14 9 Hackware 2 | . . . 10 Protection 11 | . 11 13 4 Energy Gun 6 | . 1 10 1 Energy Cannon 12 | . . 15 16 Ballistic Gun 6 | . 26 2 . Peak Build Rating 33 | 7 14 17 33 Average Rating 17 | 5 11 15 28 On Entrance 9 | . 7 14 16 Naked Turns . | . . . . Heaviest Build 70 | 11 38 68 70 Greatest Support 86 | 40 46 46 86 Greatest Overweight (x) 2 | 2 . 1 . Average Overweight (x) . | . . . . Largest Inventory Capacity 20 | 8 15 20 20 Average Capacity 16 | 7 10 17 20 Most Carried 20 | 2 13 20 20 Average Carried 15 | 1 7 16 18 Final Capacity 20 | 8 15 20 20 Final Carried 20 | 2 13 19 20 Class Distribution -------------------- 86% | Mutant 11% | Hacker-Mutant Dominant Class ---------------- Mutant | -10/Materials Mutant | -10/Subcaves Hacker-Mutant | -8/Materials Resources | -11 -10 -10 -8 ----------- Run | Yrd Mat Sub Mat Matter Collected 1221 | 212 429 190 390 Remotely . | . . . . Salvage Created 2902 | 15 592 820 1475 Parts 171 | 4 38 67 62 Haulers Intercepted 5 | . 1 . 4 Recyclers Shooed . | . . . . Parts Field Recycled . | . . . . Retrieved Matter . | . . . . Parts Self-Destructed 20 | . . 20 . Prevented . | . . . . Kills | -11 -10 -10 -8 ------- Run | Yrd Mat Sub Mat Combat Hostiles Destroyed 59 | . 14 21 24 Guns 18 | . 14 4 . Cannons 21 | . . 7 14 AOE 16 | . . 9 7 Classes Destroyed 13 | 1 3 2 7 Worker 2 | . . . 2 Builder 3 | . . . 3 Tunneler 6 | 1 2 . 3 Hauler 5 | . 1 . 4 Recycler 2 | . . . 2 Operator 2 | . . . 2 Watcher 2 | . . . 2 Swarmer 11 | . 3 5 3 Grunt 23 | . 11 . 12 Brawler 1 | . . . 1 Sentry 6 | . . 1 5 Hunter 3 | . . . 3 Subdweller 15 | . . 15 . Best Kill Streak 10 | 1 4 9 10 Combat Bots Only 9 | . 3 9 7 Max Kills in Single Turn 3 | 1 1 3 2 Gunslinging . | . . . . Exploded 3 | . . 3 2 Melee . | . . . . Uniques/NPCs Destroyed . | . . . . Combat | -11 -10 -10 -8 -------- Run | Yrd Mat Sub Mat Hostile Shots Fired 192 | . 43 51 98 Missed 52 | . 10 14 28 Hits 140 | . 33 37 70 Projectile 140 | . 33 37 70 Critical Strikes 4 | . . 1 3 Damage Taken 2426 | . 414 555 1457 Core 293 | . 73 87 133 Absorbed by Shields . | . . . . Core Remaining (%) 68 | 100 . 36 . Volleys Fired 220 | 2 47 73 98 Largest 2 | 2 2 2 2 Hottest 160 | 80 80 160 140 Shots Fired 421 | 4 94 137 186 Gun 166 | 4 94 61 7 Cannon 241 | . . 69 172 Launcher 14 | . . 7 7 Special . | . . . . Kinetic 107 | . 90 10 7 Thermal 307 | 4 4 120 179 Explosive 7 | . . 7 . Electromagnetic . | . . . . Robot Hit Streak 19 | 1 10 19 10 Robot Miss Streak 5 | . 5 5 4 Penetration Max . | . . . . Secondary Targets 1 | . 1 . . Max Gunslinging Chain 1 | . 1 . . Shots Hit Robots 221 | 1 49 56 115 Core Hits 108 | 1 20 33 54 Critical Kills 5 | . 1 1 3 Critical Parts Destroyed . | . . . . Critical Strikes 6 | . 1 2 3 Meltdown 4 | . . 1 3 Destroy 2 | . 1 1 . Melee Attacks . | . . . . Impact . | . . . . Slashing . | . . . . Piercing . | . . . . Sneak Attacks . | . . . . Combat Hostiles . | . . . . Follow-up Attacks . | . . . . Damage Inflicted 6485 | 12 807 2039 3627 Guns 1548 | 12 793 606 137 Cannons 3027 | . . 628 2399 Explosions 1896 | . . 805 1091 Melee . | . . . . Ramming 14 | . 14 . . Kinetic 1882 | . 781 95 1006 Thermal 3784 | 12 12 1139 2621 Explosive 805 | . . 805 . Electromagnetic . | . . . . Impact . | . . . . Slashing . | . . . . Piercing . | . . . . Highest Corruption . | . . . . Average Corruption . | . . . . Corruption Purged . | . . . . Corruption Blocked . | . . . . Overload Shots . | . . . . Overflow Damage 91 | . . 10 81 Projectiles 58 | . . 10 48 Explosions 33 | . . . 33 Melee . | . . . . Knockbacks . | . . . . Impact . | . . . . Kinetic . | . . . . Secondary . | . . . . Self-Inflicted Damage 341 | . . . 341 Shots 7 | . . . 7 Rammed 3 | . 3 . . Targets Rammed 3 | . 3 . . Kicked . | . . . . Crushed . | . . . . Highest Temperature 300 | 36 36 144 300 Average Temperature 54 | 20 11 36 73 Received Heat Transfer 702 | . 150 93 459 Effects 2 | . . . 2 Energy Bleed 2 | . . . 2 Siege Activations . | . . . . Martial Activations . | . . . . Shielding Activations . | . . . . Robots Disrupted . | . . . . Combat Hostiles . | . . . . Robots Corrupted . | . . . . Combat Hostiles . | . . . . Parts Fried . | . . . . Impact Corruptions . | . . . . Robots Melted 6 | . . 1 5 Combat Hostiles 4 | . . 1 3 Parts Melted 12 | . . 2 10 Heat Transferred 5809 | 25 25 1476 4283 Parts Sabotaged . | . . . . Parts Stolen . | . . . . Parts Stripped . | . . . . Power Chain Reactions . | . . . . Alert | -11 -10 -10 -8 ------- Run | Yrd Mat Sub Mat Maximum Alert Level 1 | . . . 1 Low Security (%) 83 | 100 100 . 67 Level 1 16 | . . . 32 Level 2 . | . . . . Level 3 . | . . . . Level 4 . | . . . . Level 5 . | . . . . High Security . | . . . . Max Security . | . . . . Peak Influence 363 | 5 157 . 363 Initial 36 | . . . 36 Average 118 | . 43 . 193 Influence Increases 1614 | 5 559 150 900 Destroy 0b10 Robot/C 880 | . 280 120 480 Destroy 0b10 Robot/NC 110 | 5 15 . 90 Destroy Leader 184 | . 42 . 142 Successful Hack 93 | . 82 . 11 Disable Machine 75 | . 15 . 60 Destroy Structure 122 | . 5 . 117 Lose Combat Pursuer 150 | . 120 30 . Influence Decreases 1583 | 5 495 144 939 Entered New Map 66 | . . 32 34 Time Decay 997 | 5 335 102 555 Lost Part 80 | . 20 10 50 Purge Threat 440 | . 140 . 300 Squads Dispatched 5 | . 1 . 4 Investigation 2 | . 1 . 1 Extermination . | . . . . Reinforcement 3 | . . . 3 Assault . | . . . . Garrison . | . . . . Intercept . | . . . . Searches Triggered . | . . . . Construction Impeded . | . . . . Haulers Reinforced . | . . . . Active Scanning Responses . | . . . . Cargo Convoy Interrupts . | . . . . Stealth | -11 -10 -10 -8 --------- Run | Yrd Mat Sub Mat Distress Signals 5 | . 2 . 3 Communications Jammed . | . . . . Distress Signals . | . . . . Times Spotted 101 | . 27 36 38 Peak Tracking Total 6 | . 4 6 6 Tactical Retreats 7 | . 6 1 . Traps | -11 -10 -10 -8 ------- Run | Yrd Mat Sub Mat Traps Triggered 2 | . 2 . . Indirectly . | . . . . Trap Hack Attempts . | . . . . Triggered . | . . . . Disarmed . | . . . . Reprogrammed . | . . . . Reused . | . . . . Traps Extracted . | . . . . Installed . | . . . . Triggered . | . . . . Machines | -11 -10 -10 -8 ---------- Run | Yrd Mat Sub Mat Machines Disabled 6 | . 1 1 4 Max in Single Turn 1 | . 1 1 1 Machines Repaired . | . . . . Machines Dismantled . | . . . . Machines Sabotaged . | . . . . Overloaded Fab Kills . | . . . . Hacking | -11 -10 -10 -8 --------- Run | Yrd Mat Sub Mat Machines Accessed 23 | . 10 4 9 Terminals 16 | . 8 . 8 Fabricators . | . . . . Repair Stations . | . . . . Recycling Units 2 | . 2 . . Scanalyzers . | . . . . Garrison Access 1 | . . . 1 Total Hacks 99 | . 41 16 42 Successful 59 | . 25 16 18 Failed 39 | . 15 . 24 Catastrophic 4 | . 3 . 1 Database Lockouts 1 | . 1 . . Manual 56 | . 28 . 28 Terminals 69 | . 31 . 38 Fabricators . | . . . . Repair Stations . | . . . . Recycling Units 10 | . 10 . . Scanalyzers . | . . . . Garrison Access 4 | . . . 4 Terminal Hacks 37 | . 14 16 7 Record 13 | . . 13 . Part Schematic 1 | . 1 . . Robot Analysis 7 | . 5 . 2 Prototype ID Bank 5 | . 2 . 3 Open Door 1 | . . 1 . Branch Access Points 1 | . 1 . . Terminal Index 1 | . 1 . . Unreport Threat 4 | . 2 . 2 Locate Traps 2 | . 2 . . Proto ID Catalog 1 | . . 1 . Release Object 1 | . . 1 . Fabricator Hacks . | . . . . Repair Station Hacks . | . . . . Recycling Unit Hacks 2 | . 2 . . Retrieve Components 2 | . 2 . . Scanalyzer . | . . . . Garrison Access Hacks . | . . . . Unauthorized Hacks 20 | . 9 . 11 Terminals 17 | . 6 . 11 Botnet 13 | . 5 . 8 Operators 4 | . 1 . 3 Fabricators . | . . . . Repair Stations . | . . . . Recycling Units 3 | . 3 . . Recyclers 1 | . 1 . . Mask 2 | . 2 . . Scanalyzers . | . . . . Garrison Access . | . . . . Data Cores Recovered . | . . . . Used . | . . . . Hacking Detections 18 | . 9 . 9 Full Trace Events 2 | . . . 2 Feedback Events . | . . . . Feedback Blocked . | . . . . Robot Schematics Acquired . | . . . . Robots Built . | . . . . Authchips . | . . . . Time . | . . . . Total Robot Build Rating . | . . . . Part Schematics Acquired 1 | . 1 . . Parts Built . | . . . . Authchips . | . . . . Time . | . . . . Total Part Build Rating . | . . . . Parts Repaired . | . . . . Time . | . . . . Parts Recycled . | . . . . Recycled Matter . | . . . . Retrieved Matter . | . . . . Retrieved Components 13 | . 13 . . Parts Scanalyzed . | . . . . Part Schematics Acquired . | . . . . Parts Damaged . | . . . . Bothacking | -11 -10 -10 -8 ------------ Run | Yrd Mat Sub Mat Used RIF Installer . | . . . . Robots Hacked . | . . . . Non-combat . | . . . . Combat . | . . . . Robot Hacks Applied . | . . . . Relay Couplers Released . | . . . . Fabnet Peak Effective % . | . . . . Robots Rewired . | . . . . Allies Hacked . | . . . . Hacks Repelled . | . . . . Allies | -11 -10 -10 -8 -------- Run | Yrd Mat Sub Mat Total Allies . | . . . . Largest Group . | . . . . Highest-Rated Group . | . . . . Highest-Rated Ally . | . . . . Total Orders . | . . . . Ally Attacks . | . . . . Total Damage . | . . . . Kills . | . . . . Allies Corrupted . | . . . . Allies Melted . | . . . . Intel | -11 -10 -10 -8 ------- Run | Yrd Mat Sub Mat Active Infowar (turns) 304 | 11 293 . . Seismic 304 | 11 293 . . Robot Analysis Total 7 | . 5 . 2 Derelict Logs Recovered 1 | . . 1 . Drone Launches . | . . . . Drone Recoveries . | . . . . Exploration | -11 -10 -10 -8 ------------- Run | Yrd Mat Sub Mat Turns Passed 8297 | 73 1641 4829 1754 Spaces Moved 3659 | 37 833 1970 819 Core 6 | 6 . . . Treads 3653 | 31 833 1970 819 Legs . | . . . . Wheels . | . . . . Hover . | . . . . Flight . | . . . . Fastest Speed 50 | 50 160 160 160 Average Speed 197 | 150 160 229 160 Slowest Speed 240 | 160 160 240 160 Overloaded Moves . | . . . . Propulsion Burnouts . | . . . . Robots Hopped . | . . . . Potential Cave-ins . | . . . . Cave-ins Triggered . | . . . . Exploration Rate (%) 66 | 5 93 96 72 Regions Visited 3 Branch Regions 1 Pre-discovered Areas 2 | . . 2 . Known Exits Taken . | . . . . Unknown Exits Taken 3 | 1 1 1 . Scrap Searched 12 | . . 12 . Spaces Dug 24 | . . 2 22 Terrain Destroyed 172 | . . 50 122 Melee . | . . . . Projectile 17 | . . 15 2 AOE 155 | . . 35 120 Terrain Rammed . | . . . . Walls Destroyed . | . . . . Machines Disabled . | . . . . Actions | -11 -10 -10 -8 --------- Run | Yrd Mat Sub Mat Total 4310 | 48 1048 2138 1076 Wait 239 | . 132 18 89 Move 3656 | 36 832 1969 819 Hop . | . . . . Pick Up 67 | 3 15 26 23 Fast Attach 11 | 6 3 . 2 Attach 12 | 1 2 2 7 Detach . | . . . . Swap 35 | . 7 9 19 Drop 45 | . 7 19 19 Fire 220 | 2 47 73 98 Melee . | . . . . Ram . | . . . . Kick . | . . . . Crush 3 | . 3 . . Escape Stasis . | . . . . Rewire 21 | . . 21 . Trap . | . . . . Miscellaneous 1 | . . 1 . Route ------- -11/Scrapyard -10/Materials (discovered 5 exits: [*Mat x3] / *Min / *Sub) -10/Subcaves (discovered 4 exits: *Mat x2 / [*Rec] / [*Scr]) -8/Materials (discovered 2 exits: [*Fac x2]) History --------- Turn | Location | Event 10 | -11/Scrapyard | Discovered new exit (range 15) 74 | -11/Scrapyard | Entered Materials 159 | -10/Materials | Discovered new exit (range 6) 300 | -10/Materials | Discovered new exit (range 10) 307 | -10/Materials | Build established: Mutant 601 | -10/Materials | Discovered new exit (range 3) 742 | -10/Materials | Identified exit to Mines 845 | -10/Materials | Central database locked down 961 | -10/Materials | Discovered new exit (range 16) 974 | -10/Materials | Derelicts attacked the area 1702 | -10/Materials | Discovered new exit (range 7) 1715 | -10/Materials | Entered Subcaves 1716 | -10/Subcaves | Approached by a straggling Scientist 1790 | -10/Subcaves | Ambushed by swarm of Subdwellers 1800 | -10/Subcaves | Ambushed by Subdwellers from Twisted Machinery 1831 | -10/Subcaves | Destroyed 9 combat bots 2067 | -10/Subcaves | A swath of the cavern ceiling suddenly collapsed 2135 | -10/Subcaves | Disturbed a concealed Subdweller 2135 | -10/Subcaves | Disturbed a concealed Subdweller 2166 | -10/Subcaves | Discovered new exit (range 6) 2288 | -10/Subcaves | Disturbed a concealed Subdweller 2369 | -10/Subcaves | Visited Clippyterm 2376 | -10/Subcaves | Learned location of Extension (-4) 2495 | -10/Subcaves | Scientist uncovered a shortcut to Scraptown 2520 | -10/Subcaves | Learned location of Zion (-7) 2520 | -10/Subcaves | Met a Zionite searching for "candidates" 2751 | -10/Subcaves | Ambushed by Subdwellers from Twisted Machinery 3221 | -10/Subcaves | Discovered new exit (range 5) 3327 | -10/Subcaves | Core integrity fell below 50% 3534 | -10/Subcaves | Learned Materials terminal intel 3705 | -10/Subcaves | Shifting Twisted Machinery released Flamer 3746 | -10/Subcaves | Shifting Twisted Machinery released Riot Gun 4056 | -10/Subcaves | Released subatomizers from SUBCON Basin 4180 | -10/Subcaves | Shifting Twisted Machinery released Sub. Shrapnel Launcher 4185 | -10/Subcaves | Disturbed a concealed Subdweller 4268 | -10/Subcaves | Shifting Twisted Machinery released Sub. Optics 4308 | -10/Subcaves | A swath of the cavern ceiling suddenly collapsed 4426 | -10/Subcaves | Shifting Twisted Machinery released Spk. Treads 4588 | -10/Subcaves | Visited 4L-MR0's lab 4617 | -10/Subcaves | Found Power Bank 5510 | -10/Subcaves | Discovered new exit (range 15) 6544 | -10/Subcaves | Entered Materials 6544 | -8/Materials | Evolved 4 slots: Propulsion x2, Utility x2 6545 | -8/Materials | Loaded intel: 12 terminal locations 6698 | -8/Materials | Destroyed 7 combat bots 7496 | -8/Materials | Build established: Hacker-Mutant 7972 | -8/Materials | Discovered new exit (range 5) 8261 | -8/Materials | Discovered new exit (range 7) 8298 | -8/Materials | Self-destructed Last Messages --------------- 08179_ T-07 Excavator is excavating. 08188_ Discarded System Shield. 08188_ Acquired Core Analyzer. 08191_ Dropped Particle Charger. 08192_ Acquired Core Analyzer. 08217_ T-07 Excavator is excavating. 08229_ Connecting with Terminal... >>Trojan(Botnet) Trojan loaded successfully. Testing... Terminal linked with 6 systems. Awaiting botnet instructions. >>Alert(Purge) Purged threat record, alert level lowered. >>Alert(Purge) Purged threat record, alert level lowered. 08261_ EXIT=FOUND 08298_ Connecting with Garrison Access... 08298_ ALERT: Suspicious activity at Garrison Access M001. Dispatching Investigation squad. Map ----- +----------------------------------------------------+ | ?????????????????????????????????????????????????? | | ?????????????????????????????????????????????????? | | ?????????????????????????????????????????????????? | | ?????????????????????????????????????????????????? | | ?????????????????????????????????????????????????? | | ?????????????????????????????????????????????????? | | ?????????????????????????????????????????????????? | | ???????????????????????????????????????? ??????? | | ????????????????????????????????????????===??????? | | ????????????????????????????????????????===??????? | | ????????????????????????????????????????===?????o? | | ???????????????????????????????????????? ??????? | | ???????????????????????????????????????? ??????? | | ???????????????????????????????????????? ??????? | | ???????????????????????????????????????? ?????## | | ???????????????????????????????????????? < ?????#! | | ???????????????????????????????????????? ?????# | | ????????????????????????????????????????# #?????# | | ????????????????????????????????????????# #?????# | | ????????????????????????????????????????# #?????# | | ????????????????????????????????????????# #?????# | | ????????????????????##################### ####### | | ????????????????? + | | ??????????????????????####### ################# | | ??????????????????????# # # #???????? | | ??????????????????????# "@" + + ] #???????? | | ??????????????????????# "G"Y###### #???????? | | ??????????????????????# """ #????? ] #???????? | | ??????????????????????# #?????? ! #???????? | | ??????????????????????#### ##??????#######???????? | | ?????????????????????????##??????????????????????? | | | | | | | | | | | | | | | | | | | | | | | | | | | | | | | | | | | | | | | +----------------------------------------------------+ Best States ------------- Heat Dissipation 45 Energy Generation 15 Energy Capacity 250 Matter Stores 300 Matter Capacity 300 Sight Range 16 Terrain Scan Density 10 Armor Coverage 450 Evasion (%) 40 Core Analysis 6 Recoil Reduction 4 Defensive Hacking 20 Item Schematics ----------------- Huge Storage Unit | -10/Materials | Hacked Robot Schematics ------------------ None Fabricated ------------ Nothing Repaired ---------- Nothing Alien Tech Used ----------------- None Achievements -------------- None Challenges ------------ None Game ------ Seed ParticleCoilShockpuncher Manual? 0 Play Time 00:41:38 Cumulative 329.2 hours Start 2025.07.30 @ 18:28:08 End 2025.07.30 @ 19:07:41 Sessions 1 Manual Loads 0 Difficulty Rogue Special Mode None Game No. 154 Rogue 140 Adventurer 14 Explorer 0 Win Type - Total 18 Types 15/0/1/1/0/0/0/0/1/0 Lore% 64 Gallery% 72 Achievement% 68 Wizard Run 0 Options --------- Layout 1 ASCII 0 Keyboard 0 Movement Arrows Keybinds 0 Fullscreen 1 Font 24/Smallcaps Map View 50x35 Zoom Use 0% Tactical HUD 1 Map Filters NONE Filters NONE Steam 1 RUN: 2665aba3-5987-4605-a664-b85ebb93af31